{"text_format":"1","workbook":"xlsx","n_sheets":6,"sheets":["TM_Application","Detailed Description","Check List for Submission","VF","TM_PART_D2_Budget","Φύλλο1"],"not_rendered":{"charts":0,"images":0,"macros":1,"external_links":0,"defined_names":66,"comments":0,"pivot_tables":0},"unopened":[],"bounds":{"document_bytes":16777216,"sheet_cells":100000,"rows_first":2000,"rows_last":500,"rows_between":2000,"halvings":0,"cell_chars":16384,"cell_head_chars":4096},"cells_cut":0,"cells_raw":0,"read":"whole","date_system":"1900"}

{"sheet":"TM_Application","index":0,"n_rows":1,"n_cols":5,"rows_kept":1,"cut":false,"hidden":true,"merged":[]}
["Left","Top","Right","Bottom","Ref"]

{"sheet":"Detailed Description","index":1,"n_rows":564,"n_cols":30,"rows_kept":564,"cut":false,"hidden":false,"merged":[[186,1,186,15],[186,20,186,26],[186,27,186,28],[221,1,229,31],[236,27,236,28],[325,1,325,31],[351,1,351,31],[377,12,378,31],[115,1,115,15],[257,0,257,32],[79,1,79,31],[54,1,54,31],[211,27,211,28],[125,1,133,31],[116,1,124,31],[163,27,163,28],[163,20,163,26],[77,0,77,32],[236,1,236,15],[138,1,138,31],[161,1,161,31],[184,1,184,31],[209,1,209,31],[113,1,113,31],[207,0,207,32],[173,1,181,31],[56,1,56,15],[91,1,99,31],[82,1,90,31],[141,1,149,31],[163,1,163,15],[115,20,115,26],[115,27,115,28],[81,27,81,28],[34,1,42,31],[497,1,497,15],[497,20,497,26],[497,27,497,28],[451,2,451,13],[464,1,472,31],[494,1,494,28],[461,1,461,31],[463,1,463,15],[463,20,463,26],[463,27,463,28],[442,10,448,31],[453,10,459,31],[81,1,81,15],[100,1,108,31],[234,1,234,31],[381,12,382,31],[383,12,385,31],[283,1,283,15],[283,20,283,26],[283,27,283,28],[284,1,292,31],[293,1,301,31],[261,27,261,28],[441,20,441,26],[441,27,441,28],[452,20,452,26],[452,27,452,28],[399,1,407,31],[411,20,411,26],[411,27,411,28],[412,1,420,31],[410,1,410,31],[424,0,424,32],[409,1,409,30],[450,2,450,31],[271,1,279,31],[237,1,245,31],[376,20,376,26],[187,1,195,31],[196,1,204,31],[390,20,390,26],[9,27,9,28],[55,20,55,26],[66,1,74,31],[55,27,55,28],[56,27,56,28],[56,20,56,26],[43,1,51,31],[374,1,374,31],[259,1,259,31],[281,1,281,31],[303,1,303,31],[232,0,232,32],[375,1,375,30],[354,1,362,31],[363,1,371,31],[236,20,236,26],[261,20,261,26],[390,27,390,28],[389,27,389,28],[305,1,305,15],[305,20,305,26],[305,27,305,28],[306,1,314,31],[353,1,353,15],[353,20,353,26],[428,2,428,14],[426,1,426,31],[327,20,327,26],[327,27,327,28],[389,20,389,26],[390,1,390,15],[328,1,336,31],[337,1,345,31],[315,1,323,31],[327,1,327,15],[353,27,353,28],[379,12,380,31],[4,0,4,32],[6,0,6,32],[9,1,9,15],[7,1,7,31],[8,1,8,16],[19,1,27,31],[9,20,9,26],[10,1,18,31],[211,1,211,15],[164,1,172,31],[140,1,140,15],[140,20,140,26],[114,27,114,28],[150,1,158,31],[140,27,140,28],[136,0,136,32],[211,20,211,26],[32,20,32,26],[32,27,32,28],[57,1,65,31],[33,27,33,28],[31,1,31,31],[33,20,33,26],[33,1,33,15],[0,1,0,5],[0,6,0,30],[1,0,1,31],[2,1,2,5],[2,6,2,30],[560,1,560,9],[560,10,560,31],[561,1,561,9],[561,10,561,31],[212,1,220,31],[440,2,440,13],[439,2,439,18],[429,2,429,13],[388,1,388,31],[261,1,261,15],[391,1,398,31],[376,27,376,28],[262,1,270,31],[235,1,235,31],[431,10,437,31],[430,20,430,26],[430,27,430,28],[246,1,254,31],[349,0,349,32],[539,1,547,31],[475,1,475,31],[477,1,477,15],[477,20,477,26],[477,27,477,28],[478,1,486,31],[563,1,563,9],[563,10,563,31],[562,1,562,9],[562,10,562,31],[548,1,556,31],[498,1,506,31],[516,1,524,31],[507,1,515,31],[527,1,527,28],[529,1,529,15],[529,27,529,28],[530,1,538,31],[529,20,529,26],[495,1,495,31]]}
[null,"Project title"]
[]
[null,"Project acronym"]
[]
["SECTION B - DETAILED DESCRIPTION"]
[]
["B.1 PROJECT IDENTIFICATION"]
[null,"B.1.1 Background and history of the project (opportunities/ common and territorial challenges to be addressed)                                                              \n- What are the common territorial challenge(s) that will be tackled by the project? Please describe why your project is needed in the Programme area and the relevance of your project for the Programme area, in terms of common challenges and opportunities addressed. \n- How does the project tackle identified common challenges and/or opportunities and what is new about the approach the project takes? Please describe new solutions that will be developed during the project and/or existing solutions that will be adopted and implemented during the project lifetime. Describe also in what way the approach goes beyond existing practice in the sector/programme area/participating countries."]
[]
[null,null,null,null,null,null,null,null,null,null,null,null,null,null,null,null,null,null,null,null,"Number of characters ",null,null,null,null,null,null,{"$f":"LEN(B11)+LEN(B20)","v":294}]
[null,"Please give a short overview of the project. \n\nWithin the selected Specific Objective of the Programme, please clearly specify the topic addressed by the project. Please also describe the overall objective of the project and the expected change your project will make to the current situation;\n"]
[]
[]
[]
[]
[]
[]
[]
[]
[]
[]
[]
[]
[]
[]
[]
[]
[]
[]
[]
[]
[null,"B.1.2 What are the expected outputs of the project? Who will benefit from your project outputs\nPlease describe the main outputs that will be delivered based on the WPs carried out in the project and link them to the related programme output indicators.   Explain to what extent the outputs of the project contribute to the fulfilment of the Specific  Objective. Please describe the target groups and explain in more detail exactly who will benefit from your project."]
[]
[null,null,null,null,null,null,null,null,null,null,null,null,null,null,null,null,null,null,null,null,"Number of characters ",null,null,null,null,null,null,{"$f":"LEN(B35)+LEN(B44)","v":0}]
[]
[]
[]
[]
[]
[]
[]
[]
[]
[]
[]
[]
[]
[]
[]
[]
[]
[]
[]
[]
[null,"B.1.3 What are the expected results of the project? Who will benefit from your project results                                                                                                           Please describe the main results that will be delivered based on the WPs carried out in the project and link them to the related programme result indicators.   Explain to what extent the results of the project contribute to the fulfilment of the Specific  Objective. Please describe the target groups and explain in more detail exactly who will benefit from your project."]
[]
[null,null,null,null,null,null,null,null,null,null,null,null,null,null,null,null,null,null,null,null,"Number of characters ",null,null,null,null,null,null,{"$f":"LEN(B58)+LEN(B67)","v":0}]
[]
[]
[]
[]
[]
[]
[]
[]
[]
[]
[]
[]
[]
[]
[]
[]
[]
[]
[]
[]
["B.2 METHODOLOGICAL APPROACH"]
[]
[null,"B.2.1 Project methodology/Roles - Tasks of Beneficiaries                                                                                                                            \n- Describe the project approach and provide summary description and objective of all work packages of the project and identify activities' interlinks (sequence, combination, interrelation between activities-deliverables).\n- Please include explanation of how will Beneficiaries be involved in the project (who will do what)."]
[]
[null,null,null,null,null,null,null,null,null,null,null,null,null,null,null,null,null,null,null,null,"Number of characters ",{"$f":"LEN(B83)+LEN(B92)+LEN(B101)","v":0}]
[]
[]
[]
[]
[]
[]
[]
[]
[]
[]
[]
[]
[]
[]
[]
[]
[]
[]
[]
[]
[]
[]
[]
[]
[]
[]
[]
[]
[]
[]
[]
[null,"B.2.3 Location of the investment  \nDescription of the area targeted by the project, location of Beneficiaries and activities, showing the geographical scope"]
[null,"The maximum total number of characters is 2000"]
[null,null,null,null,null,null,null,null,null,null,null,null,null,null,null,null,null,null,null,null,"Number of characters ",null,null,null,null,null,null,{"$f":"LEN(B117)+LEN(B126)","v":0}]
[]
[]
[]
[]
[]
[]
[]
[]
[]
[]
[]
[]
[]
[]
[]
[]
[]
[]
[]
[]
["B.3  MANAGEMENT"]
[]
[null,"B.3.1 Partner Expertise  \nIf you are the project lead partner, please describe here your organisation’s capacity (managerial, steering, administrative, adequacy of financial resources e.t.c.) and experience in managing, coordinating and steering EU co-financed projects or other international projects. If you are the project partner describe here your organization capacity (managerial and operational) for the successfull implementationof the assigned project activities. If you are a project partner  that will coordinate specific activities (i.e. taking over the role of project communication manager), please describe here what are your organisation’s relevant competences and experiences"]
[]
[null,null,null,null,null,null,null,null,null,null,null,null,null,null,null,null,null,null,null,null,"Number of characters ",null,null,null,null,null,null,null,null,{"$f":"LEN(B142)+LEN(B151)","v":0}]
[]
[]
[]
[]
[]
[]
[]
[]
[]
[]
[]
[]
[]
[]
[]
[]
[]
[]
[]
[]
[null,"B.3.2 How will you coordinate your project? (Structures, decision making procedures, internal communication, etc .)                                         \nDescribe how the management on the strategic and operational level will be carried out in the project, specifically:\n- Who will be responsible for coordination? Will you have any other management structures (e.g., thematic groups, WP managers)? How will the internal communication work?\n- Describe specific approaches and processes & responsible partners. If you plan to have any type of project evaluation, please describe its purpose and scope here\n- Define responsibilities, deadlines in financial flows, reporting flows, project related transfers, reclaims, etc.                                     "]
[]
[null,null,null,null,null,null,null,null,null,null,null,null,null,null,null,null,null,null,null,null,"Number of characters ",null,null,null,null,null,null,{"$f":"LEN(B165)+LEN(B174)","v":0}]
[]
[]
[]
[]
[]
[]
[]
[]
[]
[]
[]
[]
[]
[]
[]
[]
[]
[]
[]
[]
[null,"B.3.3 What is the rationale of the partnership composition and how are partners complementary to each other                                          \n-Describe how the project idea and the partnership were developed \n-Please describe the structure of your partnership and why the involved partners are needed to implement the project and to achieve the project objectives                                     "]
[]
[null,null,null,null,null,null,null,null,null,null,null,null,null,null,null,null,null,null,null,null,"Number of characters ",null,null,null,null,null,null,{"$f":"LEN(B188)+LEN(B197)","v":0}]
[]
[]
[]
[]
[]
[]
[]
[]
[]
[]
[]
[]
[]
[]
[]
[]
[]
[]
[]
[]
["B.4 INFORMATION AND PUBLICITY"]
[]
[null,"B.4.1 What will be the general approach you will follow concerning the Information and Publicity Strategy                                                                                                                                                               \nPlease describe i. the structure of the Project’s Communication Plan (timetable, milestones, target groups, etc), ii. the information and publicity measures to be carried out (website, events, publicity material etc), iii. the means of communication to be used to disseminate the Project’s outputs, results, and achievements (social media, brochures, promotional material etc), and iv. how the anticipated project results are going to be promoted at a European, National and/or at a Regional level"]
[]
[null,null,null,null,null,null,null,null,null,null,null,null,null,null,null,null,null,null,null,null,"Number of characters ",null,null,null,null,null,null,{"$f":"LEN(B213)+LEN(B222)","v":0}]
[]
[]
[]
[]
[]
[]
[]
[]
[]
[]
[]
[]
[]
[]
[]
[]
[]
[]
[]
[]
["B.5  MATURITY OF THE PROJECT"]
[]
[null,"B.5.1 Technical and legal requirements \nPlease indicate the technical and legal requirements associated to the maturity of the project in terms of completion of the administrative procedures that allow the implementation of the project (e.g. licenses, designs, permits, land acquisition, tenders documents, ownership, etc), according to the respective national legislation and if these are already available. This information should be provided for all project activities (services, equipment, infrastructure, staff). "]
[]
[null,null,null,null,null,null,null,null,null,null,null,null,null,null,null,null,null,null,null,null,"Number of characters ",null,null,null,null,null,null,null,null,{"$f":"LEN(B238)+LEN(B247)","v":0}]
[]
[]
[]
[]
[]
[]
[]
[]
[]
[]
[]
[]
[]
[]
[]
[]
[]
[]
[]
[]
["B.6  SUSTAINABILITY OF RESULTS / LONG-TERM PLANS "]
[]
[null,"B.6.1 Ownership\nPlease describe who will ensure the financial and institutional support for outputs/deliverables developed by the project (e.g., tools), and explain how these outputs/deliverables will be integrated in the work of partner organisations."]
[]
[null,null,null,null,null,null,null,null,null,null,null,null,null,null,null,null,null,null,null,null,"Number of characters ",null,null,null,null,null,null,null,null,{"$f":"LEN(B263)+LEN(B272)","v":0}]
[]
[]
[]
[]
[]
[]
[]
[]
[]
[]
[]
[]
[]
[]
[]
[]
[]
[]
[]
[null,"B.6.2 Durability \nSome outputs/deliverables should be used by relevant groups (project partners or others) after the project's lifetime, in order to have a lasting effect on the territory and the population. For example, new practices in circular economy need to be used by local authorities, and the whole population will benefit from this. Please describe how your outputs/deliverables will be used after the project ends and by whom."]
[]
[null,null,null,null,null,null,null,null,null,null,null,null,null,null,null,null,null,null,null,null,"Number of characters ",null,null,null,null,null,null,null,null,{"$f":"LEN(B285)+LEN(B294)","v":0}]
[]
[]
[]
[]
[]
[]
[]
[]
[]
[]
[]
[]
[]
[]
[]
[]
[]
[]
[]
[null,"B.6.3 Transferability \nSome outputs/deliverables that you will deliver could be adapted or further developed to be used by other target groups or in other territories. What will you do to make sure that relevant groups are aware of your outputs/deliverables and are able to use them?"]
[]
[null,null,null,null,null,null,null,null,null,null,null,null,null,null,null,null,null,null,null,null,"Number of characters ",null,null,null,null,null,null,null,null,{"$f":"LEN(B307)+LEN(B316)","v":0}]
[]
[]
[]
[]
[]
[]
[]
[]
[]
[]
[]
[]
[]
[]
[]
[]
[]
[]
[]
[null,"B.6.4 Environmental sustainability and risks associated to the intervention/s \nPlease specify possible positive or negative environmental effects related to the investment. In case of environmental risks, please describe the mitigation and monitoring measures foreseen. For investments in infrastructure with an expected lifespan of at least five years, please describe the expected impacts of climate change and how their assessment and climate proofing will be ensured. Please describe other risks associated with the investment, go/no-go decisions, etc. (if any)."]
[]
[null,null,null,null,null,null,null,null,null,null,null,null,null,null,null,null,null,null,null,null,"Number of characters ",null,null,null,null,null,null,null,null,{"$f":"LEN(B329)+LEN(B338)","v":0}]
[]
[]
[]
[]
[]
[]
[]
[]
[]
[]
[]
[]
[]
[]
[]
[]
[]
[]
[]
[]
[]
["B.7  CROSS-BORDER COOPERATION & ADDED VALUE"]
[]
[null,"B.7.1 Why is cross-border regional cooperation needed to achieve the project’s objectives and result\nPlease explain why the project objectives cannot be efficiently reached acting only on a national/regional /local level and/or describe what benefits the project partners/target groups/ project area/programme area gain in taking a cross-border approach."]
[]
[null,null,null,null,null,null,null,null,null,null,null,null,null,null,null,null,null,null,null,null,"Number of characters ",null,null,null,null,null,null,{"$f":"LEN(B355)+LEN(B364)","v":0}]
[]
[]
[]
[]
[]
[]
[]
[]
[]
[]
[]
[]
[]
[]
[]
[]
[]
[]
[]
[]
[null,"B.7.2 Intensity of Cross-Border Cooperation"]
[null,"Please select all cooperation criteria that apply to your project and describe how you will fulfil "]
[null,null,null,null,null,null,null,null,null,null,null,null,null,null,null,null,null,null,null,null,"Number of characters ",null,null,null,null,null,null,{"$f":"LEN(M378)","v":0}]
[]
[null,null,null,null,"Development of the operation"]
[]
[null,null,null,null,"Implementation of the operation"]
[]
[null,null,null,null,"Staffing of the operation"]
[]
[null,null,null,null,"Financing of the operation"]
[]
[]
[]
[null," B.7.3  How does your project build on available knowledge                                                                                                                                                                                                              \nPlease describe the experiences/lessons learned that your project draws on, and other available knowledge your project capitalises on. If relevant, please specify the projects to be capitalised and which project partner(s) have been involved   "]
[]
[null,null,null,null,null,null,null,null,null,null,null,null,null,null,null,null,null,null,null,null,"Number of characters ",null,null,null,null,null,null,{"$f":"LEN(B393)","v":0}]
[]
[]
[]
[]
[]
[]
[]
[]
[]
[]
[]
[]
[]
[]
[]
[]
[]
[]
[null,"B.7.4 How will your project make use of synergies with past or current EU and other projects or initiatives "]
[null,"Please describe synergies and the activities foreseen to ensure coordination and avoid overlaps with on-going and planned initiatives/projects. Please specify if this application is linked to any other proposal under preparation within other EU funds, also specifying the concerned EU-funded programmes (e.g. other Interreg programmes, Horizon Europe, LIFE, national or regional programmes supported by EU funds, etc.)"]
[null,null,null,null,null,null,null,null,null,null,null,null,null,null,null,null,null,null,null,null,"Number of characters ",null,null,null,null,null,null,{"$f":"LEN(K413)","v":0}]
[]
[]
[]
[]
[]
[]
[]
[]
[]
[]
[]
[]
["B.8  COMPATIBILITY WITH EU AND NATIONAL POLICIES"]
[]
[null,"B.8.1 Consistency of the project with EU horizontal principles                                                                                                                                    \nPlease describe if applicable, the effect of the project to each one of the horizontal principles. Please select with an X only one option per principle and provide the justification. "]
[]
[null,null,"Provision of accessibility for persons with disabilities"]
[null,null,"Please state if the project will : "]
[null,null,null,null,null,null,null,null,null,null,null,null,null,null,null,null,null,null,null,null,"Number of characters ",null,null,null,null,null,null,{"$f":"LEN(K432)","v":0}]
[]
[null,null,null,null,"Consistent "]
[]
[null,null,null,null,"Neutral "]
[]
[null,null,null,null,"Non Consistent "]
[]
[]
[null,null,"Sustainable Development and EU Environmental Policy, including Do No Harm principle"]
[null,null,"Please state if the project will : "]
[null,null,null,null,null,null,null,null,null,null,null,null,null,null,null,null,null,null,null,null,"Number of characters ",null,null,null,null,null,null,{"$f":"LEN(K443)","v":0}]
[]
[null,null,null,null,"Consistent "]
[]
[null,null,null,null,"Neutral "]
[]
[null,null,null,null,"Non Consistent "]
[]
[]
[null,null,"Equality between men and women and of the non-discrimination because of someone's gender, racial or ethnic origin, religion or political beliefs, disability, age or sexual orientation."]
[null,null,"Please state if the project will : "]
[null,null,null,null,null,null,null,null,null,null,null,null,null,null,null,null,null,null,null,null,"Number of characters ",null,null,null,null,null,null,{"$f":"LEN(K454)","v":0}]
[]
[null,null,null,null,"Consistent "]
[]
[null,null,null,null,"Neutral "]
[]
[null,null,null,null,"Non Consistent "]
[]
[]
[null,"B.8.2 How does the project contribute to wider strategies and policies (incl. macroregional strategies), in particular, those concerning the project or programme area.                                                             \nPlease indicate to which strategies and policies your project will contribute and briefly describe in what way. "]
[]
[null,null,null,null,null,null,null,null,null,null,null,null,null,null,null,null,null,null,null,null,"Number of characters ",null,null,null,null,null,null,{"$f":"LEN(B465)","v":0}]
[]
[]
[]
[]
[]
[]
[]
[]
[]
[]
[]
[null,"B.8.3 Compliance with national and EU regulation regarding public procurement procedures and public contracts for the procurement of works, studies, supplies and services.\nPlease describe how the relevant regulations have been or will be respected/followed during the implementation of the Project."]
[]
[null,null,null,null,null,null,null,null,null,null,null,null,null,null,null,null,null,null,null,null,"Number of characters ",null,null,null,null,null,null,{"$f":"LEN(B479)","v":0}]
[]
[]
[]
[]
[]
[]
[]
[]
[]
[]
[]
[]
[]
[]
[]
[]
[null,"B.9.1 FINANCIAL SUSTAINABILITY"]
[null,"Please describe how  the beneficiary/ies has/have the necessary financial resources and mechanisms to cover operation and maintenance costs for operations comprising investment in infrastructure or productive investment, so as to ensure their financial sustainability"]
[]
[null,null,null,null,null,null,null,null,null,null,null,null,null,null,null,null,null,null,null,null,"Number of characters ",null,null,null,null,null,null,null,null,{"$f":"LEN(B499)+LEN(B508)+LEN(B517)","v":0}]
[]
[]
[]
[]
[]
[]
[]
[]
[]
[]
[]
[]
[]
[]
[]
[]
[]
[]
[]
[]
[]
[]
[]
[]
[]
[]
[]
[]
[]
[null,"B.10.1 Other "]
[]
[null,null,null,null,null,null,null,null,null,null,null,null,null,null,null,null,null,null,null,null,"Number of characters ",null,null,null,null,null,null,null,null,{"$f":"LEN(B531)+LEN(B540)+LEN(B549)","v":0}]
[]
[]
[]
[]
[]
[]
[]
[]
[]
[]
[]
[]
[]
[]
[]
[]
[]
[]
[]
[]
[]
[]
[]
[]
[]
[]
[]
[]
[]
[]
[null,"Name of the Legal Representative"]
[null,"Title of the Legal Representative"]
[null,"Lead Beneficiary's Institution"]
[null,"Date "]

{"sheet":"Check List for Submission","index":2,"n_rows":25,"n_cols":4,"rows_kept":25,"cut":false,"hidden":false,"merged":[[10,3,11,30],[0,0,0,32],[2,1,2,30],[4,3,5,30],[6,3,7,30],[8,3,9,30],[12,3,13,30],[14,3,15,30],[16,1,16,30],[17,3,18,30],[19,3,20,30],[24,3,25,30],[26,3,27,30],[28,3,29,30],[21,3,21,29],[22,3,22,30],[23,3,23,30]]}
["CHECK LIST FOR SUBMISSION"]
[]
[null,"Please make sure that you have fulfilled the requirements listed below before submitting the documents. "]
[]
[null,null,null,"1- The project is in line with the relevant EU and national legislation and policies of the countries involved"]
[]
[null,null,null,"2- All Beneficiaries in the Partnership receiving funding from the Programme are eligible bodies as defined in the call for proposals."]
[]
[null,null,null,"3- The information is accurate and true to the best knowledge of the Lead Beneficiary"]
[]
[null,null,null,"4- The project budget and costs are in line with the limits set in the Call for proposals.\n"]
[]
[null,null,null,"5- I am aware of all the obligations related to the monitoring of the Result and Output Indicator values during the implementation of the action and their submission to the Managing Authority twice a year"]
[]
[null,null,null,"6- I am aware of all issues defined in EU (General Data Protection Regulation – GDPR) and national legislation regarding personal data protection and I will respect the obligations relevant to the protection and security of the personal data that I may process and/or data that will come to my knowledge by any possible means during the fulfilment of my duties; and I will fully comply with instructions and obligations according to the MA/JS responsible  Officer."]
[]
[]
[null,null,null,"7- I am aware of the obligations that I must comply with, during the implementation of the submitted proposal as they stem from the Charter of Fundamental Rights of the European Union and I fully confirm that the proposed action neither does violate nor is it incompatible with any of the content of the Charter of Fundamental Rights of the European Union, as outlined in the “Table for compliance of actions with the Charter of Fundamental Rights of the European Union” which is included in the Programme Manual ."]
[]
[null,null,null,"8- The in-force documents assuring the eligibility of the lead beneficiary and partners are complete and registered in the respective Beneficiary Tabs at MIS (utilities section)"]
[]
[null,null,null,"9- The Beneficiary Tab at MIS (utility section) is updated, regarding the beneficiary and partners, with the true beneficiaries.\n"]
[null,null,null,"I solemnly declare that the aforementioned information are true and accurate"]
[null,null,null,"Signature of Lead Beneficiary"]
[null,null,null,"Title and name of signatory"]

{"sheet":"VF","index":3,"n_rows":139,"n_cols":4,"rows_kept":139,"cut":false,"hidden":true,"merged":[]}
["Coutries",null,"Indicators","Measurements"]
["Bulgaria",null,"Output Indicators 1.1","Output Indicators 1.1"]
["Greece",null,"Number of enterprises receiving support","enterprises"]
[null,null,"Number of new enterprises supported","enterprises"]
[]
[]
[]
[]
["Partners",null,"Result Indicators 1.1","Result Indicators 1.1"]
["LB1",null,"Entrepreneurial business support environment","entrepreneurship barometer – composite index in 1-10 scale"]
["PB2"]
["PB3"]
["PB4"]
["PB5"]
["PB6",null,"Output Indicators 1.2","Output Indicators 1.2"]
["PB7",null,"Number of clusters and other collaborative schemes composed of stakeholders/enterprises from both sides of border","collaborative schemes"]
["PB8",null,"Number of enterprises receiving support","enterprises"]
["PB9",null,"Number of enterprises receiving non-financial support","enterprises"]
["PB10"]
[null,null,"Result Indicators 1.2","Result Indicators 1.2"]
[null,null,"Total Value of Annual CB Area Exports","meuros"]
["Type of Partner"]
["Lead Beneficiary"]
["Project Partner",null,"Output Indicators 2.3","Output Indicators 2.3"]
[null,null,"Population benefiting from flood protection measures","persons"]
[]
["Legal Status"]
["public"]
["governed by public law"]
["private organization",null,"Result Indicators 2.3","Result Indicators 2.3"]
[null,null,"Number of  international river basin districts with jointly coordinated flood risks management plans in compliance with Directive 2007/60/EC","number"]
[]
["NUTS"]
["EL111 Evros",null,"Output Indicators 2.4","Output Indicators 2.4"]
["EL115 Kavala",null,"Number of cultural and/or natural assets rehabilitated/protected","number"]
["EL112 Xanthi",null,"Increase in expected number of visits to supported sites of cultural or natural heritage and attractions","visits/year"]
["EL113 Rodopi"]
["EL114 Drama"]
["EL122 Thessaloniki",null,"Result Indicators 2.4","Result Indicators 2.4"]
["EL126 Serres",null,"Annual tourist overnight stays at accommodation establishments","Millions"]
["BG413 Blagoevgrad "]
["BG424 Smolyan"]
["BG425 Kardjali"]
["BG422 Haskovo ",null,"Output Indicators 2.5","Output Indicators 2.5"]
[null,null,"Surface area of habitats supported in order to attain a better conservation status","hectares"]
[]
[]
[null,null,"Result Indicators 2.5","Result Indicators 2.5"]
[null,null,"% of Natura areas reporting excellent or good degree of conservation","%"]
[]
[]
[]
[null,null,"Output Indicators 2.6","Output Indicators 2.6"]
[null,null,"Surface water resources under joint monitoring","hm3"]
[]
["Priority Axis"]
["1. A Competitive and Innovative Cross-Border Area ",null,"Result Indicators 2.6","Result Indicators 2.6"]
["2. A Sustainable and Climate adaptable Cross-Border area",null,"% of characterized surface water bodies in GES","%"]
["3. A Better interconnected Cross-Border Area"]
["4. A Socially Inclusive Cross-Border Area"]
["5. Technical Assistance",null,"Output Indicators 3.7","Output Indicators 3.7"]
[null,null,"Total length of newly built roads, of which: TEN-T","Km"]
[]
[]
["Investment  Priority",null,"Result Indicators 3.7","Result Indicators 3.7"]
["3a. Promoting entrepreneurship, in particular by facilitating the economic exploitation of new ideas and fostering the creation of new firms, including through business incubators",null,"Number of operating border crossings","number"]
["3d. Supporting the capacity of SMEs to grow in regional, national and international markets, and to engage in innovation processes"]
["5b. Promoting investment to address specific risks, ensuring disaster resilience and developing disaster management systems"]
["6c. Conserving, protecting, promoting and developing natural and cultural heritage",null,"Output Indicators 4.8","Output Indicators 4.8"]
["6d. Protecting and restoring biodiversity, soil protection and restoration and promoting ecosystem services including NATURA 2000 and green infrastructures",null,"Number of health care institutions reorganized, modernized or reequipped","number"]
["6f. Promoting innovative technologies to improve environmental protection and resource efficiency in the waste sector, water sector, soil protection or to reduce air pollution.",null,"Number of health ICT systems developed","number"]
["7b. Enhancing regional mobility by connecting secondary and tertiary nodes to TEN-T infrastructure, including multimodal nodes. ",null,"Population covered by improved health services","persons"]
["9a. Investing in health and social infrastructure which contribute to national, regional and local development, reducing inequalities in terms of health status, promoting social inclusion through improved access to social, cultural and recreational services and the transition from institutional to community-based services."]
["9c. Providing support for social enterprises"]
["Ta. Technical Assistance"]
[]
[null,null,"Result Indicators 4.8","Result Indicators 4.8"]
[null,null,"Annual visits to primary healthcare","visits"]
[null,null,"Annual visits to secondary/tertiary healthcare","visits"]
["Specific Objective (SO)"]
["1.To Improve entrepreneurship SME support systems "]
["2.To improve SME capacity to expand beyond local markets",null,"Output Indicators 4.9","Output Indicators 4.SO9"]
["3.To improve CB cooperation on flood risk management plans at river basin level.",null,"Number of participants in social entrepreneurship projects promoting gender equality, equal opportunities and social inclusion across borders.","number"]
["4.To valorise CB area cultural and natural heritage for tourist purposes"]
["5.To enhance the effectiveness of biodiversity protection activities"]
["6.To enhance water management",null,"Result Indicators 4.SO9","Result Indicators 4.9"]
["7.To Improve cross-border accessibility",null,"Social enterprise employees in the CB area","employees"]
["8.To improve access to primary and emergency health care (at isolated and deprived communities) in the CB area"]
["9.To expand social entrepreneurship in the CB area",null,"Output Indicators 5.10","Output Indicators 5.10"]
["10.To manage and implement the Cooperation Programme effectively and efficiently",null,"Number of employees (FTEs) whose salaries are co-financed by technical assistance","employees"]
[null,null,"Number of publicity and outreach events organized","events"]
[]
["WP"]
[1,null,"Result Indicators 5.10","Result Indicators 5.10"]
[2]
[3]
[4]
[5]
[6]
[]
[]
["VAT"]
["Recoverable"]
["Non recoverable"]
["Partly"]
[]
["VAT-2"]
["Wholy"]
["Partly"]
[]
[]
[150000]
[600000]
["€"]
[]
["National Counterpart Type"]
["National Public Funding"]
["National Private Funding"]
[]
[]
["Thematic Objective"]
["03 - Enhancing the competitiveness of small and medium-sized enterprises, the agricultural sector (for the EAFRD) and the fisheries and aquaculture sector (for the EMFF)"]
["05 - Promoting climate change adaptation, risk prevention and management"]
["06 - Preserving and protecting the environment and promoting resource efficiency"]
["07 - Promoting sustainable transport and removing bottlenecks in key network infrastructures"]
["09 - Promoting social inclusion, combating poverty and any discrimination"]
["Technical Assistance"]
[]
[]
[]
["Staff Cost Calculation Methode"]
["Flat Rate"]
["Real Cost"]
[]
[]
[]
["Office and Administration Calculation Methode"]
["Flat Rate"]
["Real Cost"]

{"sheet":"TM_PART_D2_Budget","index":4,"n_rows":1,"n_cols":5,"rows_kept":1,"cut":false,"hidden":true,"merged":[]}
["Left","Top","Right","Bottom","Ref"]

{"sheet":"Φύλλο1","index":5,"n_rows":0,"n_cols":0,"rows_kept":0,"cut":false,"hidden":true,"merged":[]}